bitfinex/quotes_ETHUSD_20251224
["timestamp","ask_amount","ask_price","bid_price","bid_amount"]
[1766612849533,0.03585901,2950.5,2950.0,0.9871983]
[1766612849730,0.03385901,2950.4,2950.0,0.9871983]
[1766612849935,0.03585901,2950.5,2950.0,0.9871983]
[1766612850317,0.94885901,2950.5,2950.0,0.9533]
[1766612851231,0.94885901,2950.5,2950.0,0.9543]
[1766612858036,0.94885901,2950.5,2950.0,0.9881983]
[1766612861762,0.94885901,2950.5,2950.0,0.9543]
[1766612861967,1.47990615,2950.5,2950.0,0.9543]
[1766612863565,3.9561709,2950.5,2950.0,0.001]
[1766612863740,0.99910513,2950.4,2950.0,0.001]
[1766612863939,0.03385901,2950.3,2950.0,0.001]
[1766612866173,0.95045901,2950.3,2949.8,0.001]
[1766612866338,0.03385901,2950.3,2949.9,0.9095]
[1766612866538,0.03385901,2950.4,2949.9,0.9095]
[1766612869682,0.52947699,2950.4,2949.9,0.9095]
[1766612869983,0.03385901,2950.4,2949.9,0.9095]
[1766612873890,0.95045901,2950.4,2949.8,0.0349006]
[1766612874081,0.9166,2950.3,2949.8,0.001]
[1766612874394,0.94945901,2950.2,2949.8,0.001]
[1766612882092,0.03385901,2950.2,2949.9,0.9519]
[1766612882286,0.002,2950.5,2950.0,0.9857983]
[1766612882676,0.002,2950.5,2950.2,0.9519]
[1766612887505,0.002,2950.5,2950.2,0.985796]
[1766612888300,1.8062,2950.8,2950.4,4.79753379]
[1766612888507,0.889,2951.2,2950.7,5.74943379]
[1766612888704,1.03056414,2951.1,2950.5,0.03389256]
[1766612889807,0.9152,2951.0,2950.5,0.03389256]
[1766612889979,0.03385901,2950.9,2950.5,0.03389256]
[1766612890380,0.03385901,2950.9,2950.4,0.594609]
[1766612895286,0.94905901,2950.9,2950.4,0.594609]
[1766612896316,0.95105901,2950.9,2950.4,0.594609]
[1766612899243,0.08350513,2951.3,2950.4,0.594609]
[1766612899244,0.002,2951.3,2950.7,4.79452641]
[1766612899526,0.002,2951.7,2950.7,4.79452641]
[1766612899527,0.9152,2951.6,2950.8,0.9519]
[1766612900014,0.9152,2951.6,2950.8,4.34076456]
[1766612900216,0.9152,2951.6,2950.9,0.9135291]
[1766612900517,4.30320739,2951.6,2950.9,0.9135291]
[1766612902892,4.30320739,2951.6,2950.8,0.9519]
[1766612903091,3.38800739,2951.6,2950.8,0.9519]
[1766612903292,0.9172,2951.4,2950.8,0.56974426]
[1766612904726,0.9172,2951.4,2950.6,3.38913789]
[1766612904922,0.9172,2951.4,2950.9,0.001]
[1766612909328,0.9152,2951.0,2950.3,3.38941845]
[1766612909623,0.9152,2950.8,2950.4,0.0338937]
[1766612910732,0.9152,2950.8,2950.4,3.42325615]
[1766612910915,0.96950513,2951.1,2950.5,3.38923767]
[1766612911120,0.888,2951.1,2950.6,0.03389141]
[1766612911317,1.8032,2951.1,2950.6,3.42300114]
[1766612912036,1.8032,2951.1,2950.6,4.35020114]
[1766612912401,0.888,2951.1,2950.9,0.001]
[1766612913511,0.03389141,2951.0,2950.9,0.001]
[1766612915036,1.01699141,2951.0,2950.6,0.03389141]
[1766612915215,1.01699141,2951.0,2950.5,0.03389256]
[1766612915411,1.01699141,2951.0,2950.5,0.34233259]
[1766612915618,1.01699141,2951.0,2950.6,0.03389141]
[1766612915840,1.01699141,2951.0,2950.5,0.03389256]
[1766612916749,1.01699141,2951.0,2950.4,3.05479413]
[1766612916947,1.01699141,2951.0,2950.5,0.01694283]
[1766612917354,1.06460513,2950.9,2950.5,0.01694283]
[1766612917524,0.9094,2950.7,2950.0,4.7903]
[1766612917722,0.9094,2950.7,2950.1,3.86879424]
[1766612917723,0.04236426,2950.6,2950.1,3.86879424]
[1766612918054,0.04236426,2950.6,2950.2,3.38958521]
[1766612918741,0.04236426,2950.6,2950.1,3.86879636]
[1766612919061,0.95176426,2950.6,2950.1,3.86879636]
[1766612919730,0.95176426,2950.6,2950.5,0.001]
[1766612925919,0.95176426,2950.6,2950.0,4.29007611]
[1766612926123,1.03326939,2950.6,2950.0,0.9003]
[1766612927958,1.03326939,2950.6,2950.5,0.001]
[1766612928162,1.5642913,2950.6,2950.5,0.001]
[1766612928735,0.6548913,2950.6,2950.0,4.29010567]
[1766612928934,0.9094,2950.5,2950.0,3.38980567]
[1766612929940,0.04236713,2950.4,2949.9,3.39093764]
[1766612930131,0.04236713,2950.4,2949.9,4.29123764]
[1766612933457,0.04236713,2950.4,2949.9,7.68118306]
[1766612934930,0.04236713,2950.4,2949.9,4.29123764]
[1766612935332,0.04236713,2950.4,2949.9,5.05956487]
[1766612935727,0.95176713,2950.4,2949.9,5.05956487]
[1766612936053,0.95376713,2950.4,2949.9,5.05956487]
[1766612936456,0.95376713,2950.4,2949.9,8.44951029]
[1766612939962,0.95376713,2950.4,2949.9,5.05956487]
[1766612940430,0.95376713,2950.4,2949.9,8.44951029]
[1766612942061,0.04436713,2950.4,2950.1,3.3897156]
[1766612942280,0.002,2950.4,2950.1,3.3897156]
[1766612942448,0.002,2950.4,2950.2,0.9655]
[1766612943251,0.002,2950.4,2950.2,0.6254282]
[1766612946782,0.002,2950.4,2950.2,4.0150061]
[1766612952184,0.002,2950.4,2950.2,0.6254282]
[1766612953884,0.002,2950.4,2950.2,4.01502859]
[1766612955185,0.002,2950.4,2950.2,0.6254282]
[1766612955988,0.002,2950.4,2950.2,4.01502538]
[1766612957592,0.002,2950.4,2950.2,0.6254282]
[1766612962891,0.002,2951.0,2950.3,3.38948581]
[1766612963077,1.11176365,2951.0,2950.2,8.18528623]
[1766612963274,1.11176365,2951.0,2950.2,3.38958467]
[1766612963698,1.06740513,2950.8,2950.1,0.9665]
[1766612963989,0.04236282,2950.7,2950.1,2.04753298]
[1766612964691,0.04236282,2950.7,2950.2,3.38957813]
[1766612967998,0.04436282,2950.7,2950.2,3.38957813]
[1766612975018,0.9108,2950.7,2950.2,3.38957813]
[1766612979121,0.9108,2950.7,2950.1,5.43718722]
[1766612983435,0.9108,2950.7,2950.1,2.04753298]
[1766612983630,1.00196426,2950.6,2950.1,0.9665]
[1766612983930,1.00196426,2950.6,2950.1,0.001]
[1766612989535,1.00196426,2950.6,2950.0,0.001]
[1766612992651,0.9596,2950.5,2950.0,0.001]
[1766612992948,1.00196713,2950.4,2950.0,0.001]
[1766612996253,0.9596,2950.6,2950.0,0.9547]
[1766612996453,0.9596,2950.6,2950.1,3.3897156]
[1766612996618,0.9596,2950.6,2950.1,4.3434156]
[1766612997449,0.002,2950.7,2950.1,4.3434156]
[1766612997672,0.891,2950.7,2950.2,0.9537]
[1766612997946,1.07606,2950.7,2950.2,0.9537]
[1766613001166,1.00196426,2950.6,2950.1,0.001]
[1766613002363,1.00196426,2950.6,2950.1,0.9675]
[1766613003859,1.07606,2950.7,2950.1,9.15291244]
[1766613004161,0.889,2950.8,2950.1,8.18641244]
[1766613004327,0.889,2950.8,2950.2,0.9665]
[1766613004528,1.32512441,2950.8,2950.2,0.9665]
[1766613006266,2.28302441,2950.8,2950.2,0.9665]
[1766613007659,0.889,2950.8,2950.3,0.9665]
[1766613007830,0.04236282,2950.7,2950.3,0.9665]
[1766613009457,0.891,2950.8,2950.3,4.35597879]
[1766613010160,0.891,2950.8,2950.4,0.9665]
[1766613016865,3.39022504,2951.4,2950.7,4.79570156]
[1766613017193,3.39022504,2951.4,2950.8,0.57622016]
[1766613017194,1.00022402,2951.3,2950.8,0.57622016]
[1766613017462,1.00022402,2951.3,2950.7,5.79609182]
[1766613017934,1.00022402,2951.3,2950.7,1.00039026]
[1766613018139,1.00022402,2951.3,2950.7,0.9665]
[1766613022388,0.002,2951.8,2951.1,4.79384257]
[1766613022666,0.002,2951.8,2951.2,1.00038452]
[1766613022865,0.9599,2951.8,2951.2,1.00038452]
[1766613024348,0.002,2951.3,2951.2,1.00038452]
[1766613024549,0.9599,2951.8,2951.2,1.52817867]
[1766613032085,4.34766504,2951.8,2951.2,1.52817867]
[1766613032255,0.9599,2951.8,2951.2,1.52817867]
[1766613036810,4.34767274,2951.8,2951.2,1.52817867]
[1766613037457,4.34767274,2951.8,2951.2,1.00038452]
[1766613050670,4.34767274,2951.8,2951.2,0.03388452]
[1766613050671,0.9408,2951.6,2951.2,0.03388452]
[1766613050878,0.9408,2951.6,2950.9,4.3838702]
[1766613051080,0.9408,2951.6,2951.0,0.889]
[1766613053308,0.9408,2951.6,2950.7,7.27899137]
[1766613053309,0.9408,2951.5,2950.7,3.89]
[1766613053499,0.9408,2951.4,2950.8,0.03388911]
[1766613053690,0.9408,2951.4,2950.8,1.02898911]
[1766613054399,0.9408,2951.4,2950.8,4.41789798]
[1766613055116,0.9408,2951.4,2951.0,0.001]
[1766613072209,0.9428,2951.4,2951.0,0.001]
[1766613079428,1.025,2951.3,2950.7,3.38897151]
[1766613079611,1.025,2951.3,2950.7,4.27797151]
[1766613080444,1.025,2951.3,2951.0,0.001]
[1766613082643,1.025,2951.3,2950.7,0.889]
[1766613082814,1.025,2951.2,2950.7,0.889]
[1766613083014,1.025,2951.1,2950.7,0.889]
[1766613084036,1.025,2951.1,2950.3,8.29677114]
[1766613084037,1.025,2951.1,2950.4,0.0338937]
[1766613084760,1.025,2951.1,2950.4,3.42325341]
[1766613087350,1.025,2951.1,2950.4,0.0338937]
[1766613087510,1.025,2951.0,2950.4,0.0338937]
[1766613087714,1.025,2950.8,2950.3,5.26858029]
[1766613087942,1.025,2950.8,2950.3,1.8791]
[1766613088527,1.025,2950.8,2950.4,0.001]
[1766613088945,1.025,2950.8,2950.2,0.889]
[1766613089147,1.025,2950.8,2950.2,0.922896]
[1766613090148,1.025,2950.7,2950.2,0.922896]
[1766613090345,1.025,2950.7,2950.2,4.3124887]
[1766613093949,1.025,2950.7,2950.1,3.39065783]
[1766613094150,3.38905201,2950.7,2950.1,0.001]
[1766613094346,0.957,2950.5,2950.0,0.001]
[1766613094747,0.957,2950.3,2949.9,0.001]
[1766613096159,4.3465318,2950.3,2949.9,0.001]
[1766613096360,4.3465318,2950.3,2949.5,0.001]
[1766613096361,0.957,2950.1,2949.5,0.001]
[1766613096657,0.957,2950.1,2949.5,0.89]
[1766613097642,0.957,2950.1,2949.5,0.001]
[1766613097842,0.86325172,2950.2,2949.5,0.001]
[1766613097843,0.9765,2949.8,2949.5,0.001]
[1766613100855,0.9765,2950.1,2949.5,0.001]
[1766613101032,1.5100538,2950.1,2949.5,0.001]
[1766613101345,1.5100538,2950.1,2949.5,1.0331]
[1766613103563,0.9765,2950.0,2949.5,1.0331]
[1766613106163,0.9765,2950.0,2949.5,0.001]
[1766613106457,0.9765,2949.9,2949.5,0.001]
[1766613106668,0.9765,2949.8,2949.5,0.001]
[1766613107969,1.05800513,2950.1,2949.5,0.001]
[1766613108139,3.4712407,2950.1,2949.5,0.03490405]
[1766613108346,0.9765,2950.0,2949.5,0.03490405]
[1766613108838,0.9765,2950.0,2949.1,8.18531414]
[1766613108839,0.9765,2949.8,2949.1,0.001]
[1766613109040,0.9765,2949.6,2949.1,0.001]
[1766613109240,0.9765,2949.6,2949.1,0.03490865]
[1766613109454,0.9765,2949.6,2949.1,1.06700865]
[1766613109936,0.4367785,2949.9,2949.4,1.0321]
[1766613109937,0.35527337,2949.9,2949.4,1.0321]
[1766613110647,1.33177337,2949.9,2949.4,1.0321]
[1766613110845,0.47216695,2949.8,2949.4,1.0321]
[1766613112064,0.47216695,2949.8,2949.5,0.001]
[1766613112460,0.47216695,2949.8,2949.2,1.0660075]
[1766613112461,1.01040405,2949.7,2949.2,1.0660075]
[1766613112663,1.09190918,2949.7,2949.1,0.001]
[1766613112964,1.09190918,2949.7,2949.1,0.03490865]
[1766613114087,0.35527337,2949.9,2949.3,1.0321]
[1766613114384,0.9765,2950.0,2949.4,1.0660052]
[1766613114761,0.9765,2950.0,2949.4,1.0321]
[1766613115077,3.47115702,2950.2,2949.4,1.0321]
[1766613115282,3.47115702,2950.2,2949.6,1.0321]
[1766613116372,4.44765702,2950.2,2949.6,1.0321]
[1766613116570,1.88321914,2950.1,2949.6,1.0321]
[1766613117670,0.9765,2950.0,2949.5,4.82737056]
[1766613120383,0.03390405,2949.9,2949.5,4.82737056]
[1766613120762,1.01040405,2950.0,2949.5,5.85947056]
[1766613121077,4.26257231,2950.1,2949.6,1.0321]
[1766613121382,0.87281509,2950.1,2949.6,1.0321]
[1766613121584,1.0251,2950.1,2949.5,4.82737056]
[1766613121763,1.0251,2950.1,2949.4,0.001]
[1766613121963,1.0251,2950.1,2949.4,0.9941]
[1766613122376,6.86080748,2950.2,2949.4,0.9941]
[1766613122578,3.47113482,2950.2,2949.5,0.9931]
[1766613124084,6.86080748,2950.2,2949.5,0.9931]
[1766613124460,1.0251,2950.1,2949.4,1.0280052]
[1766613125179,3.3898305,2950.0,2949.4,1.0280052]
[1766613125373,4.4149305,2950.0,2949.4,1.0280052]
[1766613125686,1.0251,2949.9,2949.4,1.0280052]
[1766613125891,1.0251,2949.9,2949.4,0.0349052]
[1766613126884,1.0251,2949.9,2949.4,0.001]
[1766613127288,1.0271,2949.9,2949.4,0.001]
[1766613132980,4.41707287,2949.9,2949.4,0.001]
[1766613133184,0.52871845,2949.8,2949.4,0.001]
[1766613135395,1.55381845,2949.8,2949.4,0.001]
[1766613136278,1.55581845,2949.8,2949.4,0.001]
[1766613142208,0.002,2949.8,2949.4,0.001]
[1766613142401,0.002,2949.8,2949.4,0.9941]
[1766613145408,0.002,2949.8,2949.4,0.001]
[1766613145914,1.0271,2949.8,2949.4,0.001]
[1766613153027,1.0271,2949.8,2949.2,1.0270075]
[1766613153028,1.0283,2949.7,2949.2,0.0339075]
[1766613153332,1.0283,2949.7,2949.1,0.03490865]
[1766613153706,1.10980513,2949.7,2949.1,0.03490865]
[1766613155621,1.0283,2949.7,2949.1,0.03490865]
[1766613156024,1.0283,2949.7,2949.1,0.98650865]
[1766613156235,1.0283,2949.7,2949.1,4.37736877]
[1766613160234,1.0303,2949.7,2949.1,4.37736877]
[1766613163336,1.0303,2949.7,2949.1,0.98650865]
[1766613166233,1.0303,2949.7,2949.1,4.37736193]
[1766613167139,1.0303,2949.7,2949.1,0.98650865]
[1766613168707,1.0303,2949.7,2949.1,4.37735889]
[1766613169610,1.0303,2949.7,2949.1,0.98650865]
[1766613170850,1.0303,2949.7,2949.1,4.37736223]
[1766613171515,1.0303,2949.7,2949.1,0.98650865]
[1766613176639,1.0303,2949.7,2949.1,4.37737011]
[1766613177419,1.0303,2949.7,2949.2,0.9903]
[1766613178020,1.0303,2949.7,2949.3,0.03390635]
[1766613179145,1.0303,2949.7,2949.2,0.9903]
[1766613179349,1.0303,2949.7,2949.2,1.0242075]
[1766613181138,1.0303,2949.7,2949.2,0.9903]
[1766613182130,1.0303,2949.7,2949.3,0.03390635]
[1766613182641,1.0303,2949.7,2949.2,0.9903]
[1766613182840,1.0303,2949.7,2949.2,1.0242075]
[1766613184446,0.002,2949.7,2949.2,3.42465324]
[1766613184650,0.002,2949.7,2949.3,0.9672]
[1766613190267,0.002,2949.7,2949.4,0.0339052]
[1766613202062,0.964,2949.7,2949.3,0.001]
[1766613202458,1.40795198,2949.7,2949.3,0.001]
[1766613203739,0.962,2949.6,2949.3,0.001]
[1766613212145,1.0047,2949.5,2948.8,1.9101]
[1766613212454,0.08150513,2949.6,2948.9,0.98101094]
[1766613212861,1.0067,2949.7,2948.9,0.98101094]
[1766613213162,1.54383093,2949.7,2948.9,0.98101094]
[1766613213546,1.54383093,2949.7,2949.0,0.9471]
[1766613213765,1.54383093,2949.7,2949.1,0.98100865]
[1766613223981,4.93400727,2949.7,2949.1,0.98100865]
[1766613233993,1.0016,2949.6,2949.1,0.03390865]
[1766613234165,1.50335124,2949.6,2949.0,0.03490979]
[1766613234565,1.50335124,2949.6,2949.0,1.06980979]
[1766613235300,0.50175124,2949.6,2949.0,1.06980979]
[1766613235598,1.0016,2949.5,2949.0,1.06980979]
[1766613239298,0.50175124,2949.6,2949.0,1.06980979]
[1766613239471,0.50175124,2949.6,2949.1,1.0349]
[1766613239674,1.0036,2949.7,2949.2,0.0339075]
[1766613244300,0.002,2949.7,2949.3,1.0009]
[1766613244511,0.002,2949.7,2949.4,1.0348052]
[1766613245081,0.002,2949.7,2949.4,1.0009]
[1766613245406,0.34159693,2949.7,2949.4,1.0009]
[1766613253617,0.9903,2949.9,2949.4,1.0009]
[1766613253827,4.38028276,2949.9,2949.4,1.0009]
[1766613255725,0.9883,2949.8,2949.1,1.03480865]
[1766613256816,0.002,2949.9,2949.2,1.0009]
[1766613257128,3.39196506,2949.9,2949.4,1.0009]
[1766613257618,0.002,2949.9,2949.4,1.0009]
[1766613259993,0.9903,2949.9,2949.4,1.0009]
[1766613261930,3.39006034,2949.8,2949.4,1.0009]
[1766613262099,3.39006034,2949.8,2949.0,0.001]
[1766613262100,0.9883,2949.7,2949.0,0.001]
[1766613262299,0.9883,2949.7,2949.0,1.0019]
[1766613262532,0.9883,2949.7,2949.1,0.18929]
[1766613264228,0.9883,2949.6,2949.1,0.18929]
[1766613264412,0.9883,2949.6,2949.0,0.001]
[1766613265402,0.9883,2949.6,2949.0,0.03490979]
[1766613267329,0.9883,2949.5,2949.0,0.03490979]
[1766613273439,0.9883,2949.5,2949.0,0.001]
[1766613273624,3.39043207,2949.5,2948.9,0.001]
[1766613273831,0.9827,2949.4,2948.9,0.001]
[1766613274031,0.9827,2949.4,2948.9,0.44211364]
[1766613275111,0.9827,2949.4,2948.9,0.001]
[1766613276841,0.9827,2949.4,2949.0,0.001]
[1766613290939,3.39034108,2949.6,2949.0,0.9605]
[1766613291234,4.33144108,2949.6,2949.1,0.03390865]
[1766613293461,4.33344108,2949.6,2949.1,0.03390865]
[1766613297932,0.9411,2949.5,2949.1,0.03390865]
[1766613302066,0.9431,2949.5,2949.1,0.03390865]
[1766613310176,0.002,2949.5,2949.1,1.03590865]
[1766613335194,3.39217726,2949.7,2949.1,5.03881746]
[1766613335500,0.002,2949.7,2949.2,0.9636]
[1766613335700,0.002,2949.7,2949.3,0.99750635]
[1766613335877,0.002,2949.7,2949.1,6.02274296]
[1766613335878,4.41750373,2949.7,2949.1,6.78076385]
[1766613339306,4.41750373,2949.7,2949.1,5.81716385]
[1766613339513,4.41750373,2949.7,2949.2,0.9636]
[1766613346618,5.29551069,2949.7,2949.2,0.9636]
[1766613350241,0.9508,2949.6,2949.0,1.90883415]
[1766613350605,0.9508,2949.6,2949.1,1.0095]
[1766613355140,4.34309032,2949.6,2949.1,1.0095]
[1766613358030,3.39229032,2949.6,2949.0,1.01883415]
[1766613358227,0.9508,2949.5,2949.0,0.001]
[1766613358613,0.9508,2949.5,2949.0,0.03490979]
[1766613359414,4.34124725,2949.5,2949.0,0.03490979]
[1766613360351,4.34124725,2949.5,2949.0,0.001]
[1766613362246,0.9508,2949.5,2949.0,0.001]
[1766613364547,0.9508,2949.5,2949.0,0.03490979]
[1766613365351,0.002,2949.6,2949.0,1.01240979]
[1766613365728,3.39231562,2949.6,2949.0,1.01240979]
[1766613365916,4.39651562,2949.6,2949.0,1.01240979]
[1766613383269,4.39651562,2949.6,2949.1,1.99538249]
[1766613384272,1.0062,2949.6,2949.1,1.99538249]
[1766613385141,0.002,2949.6,2949.1,1.99538249]
[1766613388883,0.002,2949.6,2949.2,0.0339075]
[1766613401494,0.002,2949.6,2949.2,1.0845075]
[1766613403996,0.002,2949.6,2949.2,0.0339075]
[1766613404199,0.002,2949.6,2949.1,1.01888249]
[1766613405599,0.9758,2949.6,2949.1,1.01888249]
[1766613405895,0.9738,2949.5,2949.1,1.01888249]
[1766613408901,0.9738,2949.5,2949.2,0.0339075]
[1766613409412,0.002,2949.6,2949.2,1.0198075]
[1766613412110,0.002,2950.0,2949.5,0.9859]
[1766613412307,0.002,2950.0,2949.6,0.9859]
[1766613412623,3.95881274,2950.3,2949.7,1.01980175]
[1766613412908,0.49764088,2950.2,2949.7,2.03753231]
[1766613413101,0.49764088,2950.2,2949.7,2.00363056]
[1766613413297,0.002,2950.3,2949.8,1.0198006]
[1766613413700,0.002,2950.3,2949.9,0.9859]
[1766613414083,0.002,2950.3,2949.9,2.0035408]
[1766613415409,0.002,2950.3,2949.9,0.9859]
[1766613415713,0.002,2950.3,2949.9,2.0035408]
[1766613416090,0.002,2950.0,2949.9,2.0035408]
[1766613419319,0.002,2950.3,2949.9,2.0035408]
[1766613419501,0.002,2950.3,2950.0,0.0338983]
[1766613419701,0.002,2950.3,2949.9,0.9859]
[1766613419902,0.002,2950.3,2950.0,1.01762699]
[1766613420723,0.002,2950.3,2950.0,1.05152529]
[1766613421016,0.002,2950.3,2950.0,0.0338983]
[1766613421398,0.002,2950.3,2950.1,0.5687]
[1766613425516,0.002,2950.3,2950.0,0.0338983]
[1766613425718,0.5869,2950.3,2949.8,0.0339006]
[1766613425902,0.5869,2950.3,2949.9,0.9859]
[1766613426823,0.5869,2950.3,2950.0,0.0338983]
[1766613428195,0.5869,2950.3,2949.9,1.01979945]
[1766613428417,0.5869,2950.3,2949.9,0.9859]
[1766613428623,3.97640781,2950.3,2949.9,0.9859]
[1766613429815,3.97640781,2950.3,2949.9,0.9869]
[1766613430140,0.5905,2950.2,2949.9,0.9869]
[1766613430322,0.5905,2950.2,2949.7,1.0602]
[1766613432924,1.29518265,2950.2,2949.7,1.0602]
[1766613433126,1.29518265,2950.2,2949.7,1.9492]
[1766613433296,2.31285797,2950.2,2949.7,1.9492]
[1766613434627,2.31285797,2950.2,2949.8,0.0339006]
[1766613440533,2.31285797,2950.2,2949.7,1.09410175]
[1766613441231,5.11197026,2950.2,2949.7,0.03390175]
[1766613441913,1.72235797,2950.2,2949.7,0.03390175]
[1766613442805,0.70468265,2950.2,2949.7,0.03390175]
[1766613446412,0.70668265,2950.2,2949.7,0.03390175]
[1766613451269,0.51158876,2950.1,2949.7,0.03390175]
[1766613455049,0.002,2950.2,2949.7,1.08760175]
[1766613455719,0.002,2950.8,2950.0,1.0537]
[1766613455924,4.40851436,2950.8,2950.2,1.0537]
[1766613456227,3.39097021,2950.8,2950.3,0.03389485]
[1766613456536,3.39097021,2950.8,2950.3,1.08759485]
[1766613460676,0.002,2950.8,2950.3,1.08759485]
[1766613462057,0.002,2950.8,2950.3,0.03389485]
[1766613462253,0.002,2950.8,2950.1,0.03389715]
[1766613462448,0.002,2950.8,2950.3,0.001]
[1766613466154,0.002,2950.8,2950.1,1.72599418]
[1766613466155,0.002,2950.8,2950.1,1.08759715]
[1766613469130,0.002,2950.8,2950.2,1.0599]
[1766613469363,0.002,2950.8,2950.3,0.03389485]
[1766613472176,0.002,2950.8,2950.0,1.9499]
[1766613472177,0.0358989,2950.7,2950.0,1.9499]
[1766613472482,0.72580411,2950.7,2950.0,1.9499]
[1766613472834,0.72580411,2950.7,2950.1,0.03389715]
[1766613473169,0.72580411,2950.7,2950.1,1.09379715]
[1766613474243,0.0358989,2950.7,2950.1,1.09379715]
[1766613484281,8.22245311,2950.7,2950.0,0.001]
[1766613484466,3.4725525,2950.7,2950.0,0.001]
[1766613484666,1.01762354,2950.6,2950.0,0.001]
[1766613484872,0.49561959,2950.5,2950.0,0.001]
[1766613486151,3.8848769,2950.5,2949.8,0.01694281]
[1766613486377,7.27413421,2950.5,2949.7,1.8706]
[1766613486577,7.23176851,2950.5,2949.7,1.8706]
[1766613486781,7.23176851,2950.5,2949.7,0.9816]
[1766613486955,1.20292753,2950.4,2949.6,0.001]
[1766613487155,0.04236857,2950.3,2949.6,0.001]
[1766613488383,3.4318719,2950.3,2949.6,0.001]
[1766613490084,3.4318719,2950.3,2949.6,0.01795315]
[1766613491486,0.04236857,2950.3,2949.6,0.01795315]
[1766613491687,0.99185858,2950.3,2949.6,0.01795315]
[1766613492883,0.99185858,2950.3,2949.6,4.38982658]
[1766613493287,4.79750684,2950.0,2949.5,0.001]
[1766613493457,0.04237431,2949.9,2949.3,0.889]
[1766613493656,0.04237144,2950.1,2949.3,0.90596292]
[1766613493883,0.04237144,2950.1,2949.3,0.889]
[1766613494590,3.3898305,2950.0,2949.3,0.889]
[1766613494756,0.04237431,2949.9,2949.3,0.889]
[1766613495258,0.04237431,2949.9,2949.2,0.9816]
[1766613495468,0.04237431,2949.9,2949.2,0.99856464]
[1766613495668,0.04237431,2949.9,2949.2,0.01696464]
[1766613495869,0.44500631,2949.8,2949.2,0.01696464]
[1766613496069,0.04237719,2949.7,2949.2,0.01696464]
[1766613499564,0.04237719,2949.7,2949.2,3.40769589]
[1766613499897,0.04237719,2949.7,2949.2,4.38929589]
[1766613500083,0.04237719,2949.7,2949.2,0.99856464]
[1766613500377,0.04237431,2949.9,2949.2,0.99856464]
[1766613500583,0.44501111,2949.8,2949.2,0.99856464]
[1766613500881,0.04237719,2949.7,2949.2,0.99856464]
[1766613501392,0.44501111,2949.8,2949.3,0.9816]
[1766613501594,4.40770905,2950.0,2949.3,0.9816]
[1766613502489,4.40770905,2950.0,2949.1,0.89]
[1766613502713,4.40770905,2950.0,2949.1,0.001]
[1766613502714,4.79750684,2949.5,2949.1,0.001]
[1766613502867,0.08150513,2949.7,2949.0,0.001]
[1766613502868,0.0423815,2949.4,2949.0,0.001]
[1766613503067,0.04237862,2949.6,2949.0,0.001]
[1766613503274,0.53451768,2949.6,2949.0,0.001]
[1766613503486,1.55247616,2949.6,2949.0,0.001]
[1766613506494,4.94278325,2949.6,2949.0,0.001]
[1766613507195,4.67031373,2949.6,2949.0,0.001]
[1766613507490,4.71269235,2949.6,2949.0,0.001]
[1766613507701,0.47941975,2949.5,2949.0,0.001]
[1766613507867,0.0423815,2949.4,2949.0,0.001]
[1766613512402,0.0423815,2949.4,2949.0,0.03490979]
[1766613520308,0.24529592,2949.5,2949.0,0.03490979]
[1766613524294,3.65235879,2949.6,2949.0,0.03490979]
[1766613525188,3.39031063,2949.6,2949.0,0.03490979]
[1766613527913,3.39031063,2949.6,2949.0,0.9934]
[1766613529227,4.37280504,2949.7,2949.0,0.9934]
[1766613529386,3.39020504,2949.7,2949.0,0.9934]
[1766613530224,3.39020504,2949.7,2949.1,1.02630865]
[1766613530394,3.39020504,2949.7,2949.1,1.46824587]
[1766613530733,0.03390922,2949.6,2948.5,0.9934]
[1766613531021,0.08150513,2949.4,2948.6,0.0339144]
[1766613531179,0.03390922,2949.3,2948.6,0.0339144]
[1766613531985,3.42461928,2949.3,2948.6,0.0339144]
[1766613532220,8.49839098,2949.3,2948.6,0.0339144]
[1766613532390,0.08150513,2949.2,2948.6,0.0339144]
[1766613532591,0.03390922,2949.1,2949.0,0.001]
[1766613533593,1.44284768,2949.3,2949.0,0.001]
[1766613533918,0.68966164,2949.3,2949.0,0.001]
[1766613534109,1.01806557,2949.4,2949.0,0.001]
[1766613535205,3.39063506,2949.3,2949.0,0.001]
[1766613537101,3.39063506,2949.3,2948.7,0.9924]
[1766613537301,3.47228797,2949.2,2948.7,0.9924]
[1766613537924,3.47228797,2949.2,2948.5,0.9934]
[1766613538145,3.47228797,2949.2,2948.6,0.0339144]
[1766613538301,4.26852623,2949.2,2948.6,0.0339144]
[1766613539731,4.26852623,2949.2,2949.0,0.001]
[1766613539933,4.1870211,2949.2,2949.0,0.001]
[1766613540237,0.79623826,2949.2,2949.0,0.001]
[1766613540434,0.4186931,2949.1,2949.0,0.001]
[1766613542530,0.4186931,2949.1,2949.0,0.9985]
[1766613542760,3.39069271,2949.3,2949.0,0.9985]
[1766613547258,3.39269271,2949.3,2949.0,0.9985]
[1766613547647,3.39269271,2949.3,2949.0,0.001]
[1766613547835,0.44922634,2949.2,2949.0,0.001]
[1766613548036,0.44922634,2949.2,2948.7,0.9975]
[1766613548729,3.39269271,2949.3,2948.7,0.9975]
[1766613552044,0.002,2950.0,2948.8,6.72179152]
[1766613552045,0.002,2949.6,2948.8,6.72179152]
[1766613552234,3.39231328,2949.6,2948.8,1.92141209]
[1766613552436,3.39231328,2949.6,2948.9,1.01792394]
[1766613552634,3.39231328,2949.6,2949.0,0.03390979]
[1766613553026,0.002,2949.6,2949.0,0.03390979]
[1766613554567,0.002,2949.6,2949.0,1.03140979]
[1766613560937,0.002,2949.6,2949.0,0.03390979]
[1766613561965,0.002,2949.6,2949.0,0.03490979]
[1766613569479,0.04319158,2949.6,2949.1,0.9975]
[1766613569680,0.9682,2953.7,2950.8,4.5695]
[1766613569852,0.9682,2953.7,2950.0,3.69007348]
[1766613569853,0.08150513,2953.1,2953.0,0.08067616]
[1766613570047,1e-08,2952.7,2952.3,5.69026038]